bitfinex-derivatives/quotes_BTCF0:USTF0_20241210
["timestamp","ask_amount","ask_price","bid_price","bid_amount"]
[1733829749358,0.3668,97573.0,97572.0,0.051226]
[1733829749552,0.3668,97573.0,97572.0,0.05442785]
[1733829761563,0.45845628,97573.0,97572.0,0.05442785]
[1733829762564,0.3668,97573.0,97572.0,0.05442785]
[1733829765583,0.3668,97573.0,97572.0,0.05442799]
[1733829768775,0.3668,97573.0,97572.0,0.05442802]
[1733829775687,0.3668,97573.0,97572.0,0.05442798]
[1733829780487,0.3668,97573.0,97572.0,0.36150113]
[1733829780882,0.3668,97573.0,97572.0,0.05442798]
[1733829781090,0.4890067,97573.0,97572.0,0.05442798]
[1733829781388,0.3668,97573.0,97572.0,0.05442798]
[1733829781586,0.418025,97573.0,97572.0,0.00320198]
[1733829781789,0.418025,97573.0,97572.0,0.18759978]
[1733829781987,0.46783264,97573.0,97572.0,0.00320198]
[1733829782489,0.63586343,97573.0,97572.0,0.00320198]
[1733829782688,0.46783264,97573.0,97572.0,0.00320198]
[1733829782992,0.47778291,97573.0,97572.0,0.00320198]
[1733829783493,0.66091878,97573.0,97572.0,0.00320198]
[1733829783882,0.051229,97566.0,97565.0,0.051229]
[1733829784077,0.412029,97566.0,97565.0,0.0544318]
[1733829784277,0.412149,97566.0,97565.0,0.051229]
[1733829784484,0.412149,97566.0,97565.0,0.0544318]
[1733829785086,0.414149,97566.0,97565.0,0.0544318]
[1733829787701,0.53610761,97566.0,97565.0,0.0544318]
[1733829788888,0.53610761,97566.0,97565.0,0.0032028]
[1733829789088,0.414149,97566.0,97565.0,0.0032028]
[1733829789989,0.414149,97566.0,97562.0,0.051231]
[1733829790296,0.14265065,97563.0,97562.0,0.051231]
[1733829790492,0.14277065,97563.0,97562.0,0.05443373]
[1733829791094,0.051351,97563.0,97562.0,0.05443373]
[1733829791996,0.054351,97563.0,97562.0,0.05443373]
[1733829793099,0.056351,97563.0,97562.0,0.05443373]
[1733829793493,0.14774841,97563.0,97562.0,0.051231]
[1733829793687,0.14774841,97563.0,97562.0,0.05443373]
[1733829794001,0.86934841,97563.0,97562.0,0.05443373]
[1733829794397,0.777951,97563.0,97562.0,0.05443373]
[1733829794797,0.056351,97563.0,97562.0,0.05443373]
[1733829795003,0.777951,97563.0,97562.0,0.05443373]
[1733829795396,0.86934841,97563.0,97562.0,0.05443373]
[1733829796395,0.777951,97563.0,97562.0,0.05443373]
[1733829797201,0.86934841,97563.0,97562.0,0.05443373]
[1733829798502,0.14774841,97563.0,97562.0,0.05443373]
[1733829798904,0.86934841,97563.0,97562.0,0.05443373]
[1733829799902,0.777951,97563.0,97562.0,0.00320273]
[1733829802300,0.777951,97563.0,97562.0,0.05443373]
[1733829803605,0.777951,97563.0,97562.0,0.051231]
[1733829803811,0.777951,97563.0,97562.0,0.05443373]
[1733829806509,0.89990961,97563.0,97562.0,0.05443372]
[1733829807112,0.777951,97563.0,97562.0,0.05443372]
[1733829809515,0.777951,97563.0,97562.0,0.23883152]
[1733829809709,0.777951,97563.0,97562.0,0.2356288]
[1733829810011,0.777951,97563.0,97562.0,0.23883152]
[1733829810924,0.777951,97563.0,97562.0,0.05443372]
[1733829811425,0.82776446,97563.0,97562.0,0.05443372]
[1733829811633,0.82776446,97563.0,97562.0,0.00320272]
[1733829812023,0.72672,97563.0,97562.0,0.00320272]
[1733829812221,0.72672,97563.0,97562.0,0.30029499]
[1733829812417,0.00512,97563.0,97562.0,0.30032211]
[1733829812617,0.24938256,97571.0,97562.0,0.28445255]
[1733829812826,0.12230562,97573.0,97572.0,0.051226]
[1733829813023,0.12230562,97578.0,97577.0,0.051223]
[1733829813328,0.12230562,97578.0,97577.0,0.054485]
[1733829813535,0.3608,97580.0,97579.0,0.051222]
[1733829813725,0.3608,97580.0,97579.0,0.054424]
[1733829814026,0.3608,97580.0,97579.0,0.054484]
[1733829815037,0.3698,97580.0,97579.0,0.054484]
[1733829815725,0.3758,97580.0,97579.0,0.054484]
[1733829816424,0.3758,97580.0,97579.0,0.003262]
[1733829816631,0.427022,97580.0,97579.0,0.003262]
[1733829818025,0.3758,97580.0,97579.0,0.054484]
[1733829818534,0.3758,97580.0,97579.0,0.051282]
[1733829819132,0.3758,97580.0,97579.0,0.0614216]
[1733829819535,0.3758,97580.0,97579.0,0.06462354]
[1733829819929,0.3758,97580.0,97579.0,0.24867197]
[1733829820538,0.3758,97580.0,97579.0,0.06462354]
[1733829823037,0.3758,97580.0,97579.0,0.06462342]
[1733829824437,0.3758,97580.0,97579.0,0.0614216]
[1733829827443,0.3758,97580.0,97579.0,0.06462342]
[1733829831632,0.015,97580.0,97579.0,0.06462342]
[1733829834430,0.015,97580.0,97579.0,0.0646234]
[1733829836538,0.015,97580.0,97579.0,0.24867183]
[1733829837640,0.015,97580.0,97579.0,0.0646234]
[1733829837833,0.015,97580.0,97579.0,0.24853037]
[1733829838437,0.015,97580.0,97579.0,0.0646234]
[1733829840042,0.015,97580.0,97579.0,0.31023108]
[1733829840544,0.015,97580.0,97579.0,0.0646234]
[1733829841437,0.015,97580.0,97579.0,0.0614216]
[1733829841840,0.015,97580.0,97579.0,0.0646234]
[1733829842646,0.015,97580.0,97579.0,0.0614216]
[1733829848752,0.015,97580.0,97579.0,0.36873322]
[1733829849249,0.015,97580.0,97579.0,0.0614216]
[1733829849636,0.015,97580.0,97579.0,0.36873322]
[1733829850442,0.015,97580.0,97579.0,0.0614216]
[1733829852552,0.015,97580.0,97579.0,0.36873322]
[1733829853050,0.015,97580.0,97579.0,0.0614216]
[1733829855946,0.0779,97580.0,97579.0,0.0614216]
[1733829861845,0.0779,97580.0,97579.0,0.0101396]
[1733829862045,0.051223,97578.0,97577.0,0.24586321]
[1733829862249,0.051224,97575.0,97572.0,0.051225]
[1733829862552,0.51369535,97578.0,97564.0,0.05123]
[1733829862553,0.051227,97571.0,97564.0,0.05123]
[1733829862752,0.3608,97570.0,97562.0,0.31722217]
[1733829863053,0.00012,97563.0,97562.0,0.051231]
[1733829865356,0.00212,97563.0,97562.0,0.051231]
[1733829865862,0.00512,97563.0,97562.0,0.051231]
[1733829866761,0.056351,97563.0,97560.0,0.19421892]
[1733829866958,0.056351,97563.0,97560.0,0.23535494]
[1733829867159,0.00012,97561.0,97560.0,0.23535494]
[1733829867457,0.00012,97561.0,97560.0,0.051232]
[1733829868660,0.00212,97561.0,97560.0,0.051232]
[1733829869260,0.00312,97561.0,97560.0,0.051232]
[1733829869752,0.36492,97561.0,97560.0,0.051232]
[1733829869954,0.416152,97561.0,97560.0,0.051232]
[1733829870859,0.416152,97561.0,97556.0,0.18412294]
[1733829870860,0.051234,97557.0,97556.0,0.18412294]
[1733829871055,0.051234,97557.0,97556.0,0.051234]
[1733829871249,0.051235,97555.0,97554.0,0.18412294]
[1733829871448,0.00012,97557.0,97551.0,0.01009047]
[1733829871663,0.3608,97552.0,97551.0,0.051237]
[1733829872460,0.36092,97552.0,97551.0,0.051237]
[1733829873163,0.36092,97552.0,97551.0,0.053237]
[1733829880852,0.00012,97552.0,97551.0,0.053237]
[1733829884257,0.00012,97552.0,97551.0,0.414037]
[1733829885056,0.0307,97564.0,97551.0,0.3628]
[1733829885258,0.3608,97572.0,97562.0,0.412031]
[1733829886358,0.00312,97563.0,97562.0,0.412031]
[1733829888569,0.00612,97563.0,97562.0,0.412031]
[1733829890563,0.00612,97563.0,97562.0,0.42186293]
[1733829905483,0.00612,97563.0,97562.0,0.72816533]
[1733829906378,0.00612,97563.0,97562.0,0.97731931]
[1733829906780,0.0305,97576.0,97575.0,0.051224]
[1733829907177,0.0305,97576.0,97575.0,0.051284]
[1733829908088,0.0445,97576.0,97575.0,0.051284]
[1733829910485,0.12224426,97594.0,97593.0,0.051215]
[1733829910688,0.0333,97595.0,97594.0,0.051214]
[1733829910981,0.0333,97595.0,97594.0,0.59603641]
[1733829911177,0.0333,97595.0,97594.0,0.412074]
[1733829912182,0.0423,97595.0,97594.0,0.413074]
[1733829913387,0.0493,97595.0,97594.0,0.414074]
[1733829913777,0.0403,97595.0,97594.0,0.413074]
[1733829913979,0.0463,97595.0,97594.0,0.413074]
[1733829914179,0.0393,97595.0,97594.0,0.412074]
[1733829914377,0.0433,97595.0,97594.0,0.412074]
[1733829914578,0.01,97595.0,97594.0,0.412074]
[1733829914786,0.00350213,97595.0,97594.0,0.412074]
[1733829914991,0.0332,97603.0,97602.0,0.05121]
[1733829915392,0.0332,97603.0,97602.0,0.05127]
[1733829915886,0.0332,97603.0,97602.0,0.41207]
[1733829917184,0.0372,97603.0,97602.0,0.41207]
[1733829917888,0.0422,97603.0,97602.0,0.41207]
[1733829918087,0.0315,97617.0,97616.0,0.051203]
[1733829919000,0.0315,97617.0,97616.0,0.051263]
[1733829919783,0.0315,97617.0,97616.0,0.052263]
[1733829919784,0.0385,97617.0,97616.0,0.052263]
[1733829920489,0.0335,97617.0,97616.0,0.051263]
[1733829920689,0.0355,97617.0,97616.0,0.051263]
[1733829921295,0.004,97617.0,97616.0,0.051263]
[1733829922694,0.0313,97635.0,97621.0,0.0512]
[1733829922995,0.3608,97659.0,97648.0,0.051186]
[1733829923199,0.0628,97658.0,97648.0,0.051186]
[1733829923383,0.0628,97658.0,97634.0,0.412053]
[1733829923384,0.3608,97649.0,97643.0,0.051188]
[1733829923695,0.00012,97644.0,97643.0,0.051188]
[1733829924084,0.00012,97644.0,97643.0,0.05128768]
[1733829925300,0.00012,97644.0,97643.0,0.05228768]
[1733829926295,0.00512,97644.0,97643.0,0.05228768]
[1733829926487,0.00512,97644.0,97643.0,0.06253003]
[1733829941205,9.03e-05,97654.0,97653.0,0.051183]
[1733829941405,9.03e-05,97654.0,97653.0,0.411983]
[1733829942507,0.0050903,97654.0,97653.0,0.411983]
[1733829943198,0.0050903,97654.0,97653.0,0.42203528]
[1733829947111,0.0050903,97654.0,97653.0,0.06123528]
[1733829947907,0.3658903,97654.0,97647.0,0.051186]
[1733829948112,0.051186,97649.0,97648.0,0.051185]
[1733829948312,0.14231003,97649.0,97648.0,0.051185]
[1733829949312,0.051186,97649.0,97648.0,0.051185]
[1733829950109,0.055186,97649.0,97648.0,0.051185]
[1733829950315,0.17743026,97649.0,97648.0,0.051185]
[1733829950504,0.12624426,97649.0,97648.0,0.051185]
[1733829951308,0.004,97649.0,97648.0,0.051185]
[1733829953410,0.055185,97649.0,97648.0,0.051185]
[1733829954314,0.051188,97644.0,97624.0,0.18328678]
[1733829954523,0.411998,97625.0,97624.0,0.051199]
[1733829955409,0.53417049,97625.0,97624.0,0.051199]
[1733829955611,0.53417049,97625.0,97624.0,0.062199]
[1733829956205,0.53417049,97625.0,97624.0,0.058199]
[1733829956418,0.411998,97625.0,97624.0,0.062199]
[1733829957816,0.411998,97625.0,97624.0,0.051199]
[1733829958016,0.412998,97625.0,97624.0,0.051199]
[1733829958414,0.50452569,97625.0,97624.0,0.051199]
[1733829958611,0.3618,97625.0,97613.0,0.00077]
[1733829958811,0.051204,97616.0,97615.0,0.051202]
[1733829959120,0.412004,97616.0,97615.0,0.051202]
[1733829960418,0.3608,97616.0,97615.0,0.051202]
[1733829961026,0.412003,97616.0,97615.0,0.054202]
[1733829962019,0.412003,97616.0,97615.0,0.055202]
[1733829964722,0.412003,97616.0,97615.0,0.004]
[1733829965519,0.412003,97616.0,97615.0,0.055203]
[1733829966833,0.3608,97616.0,97615.0,0.055203]
[1733829967215,0.412003,97616.0,97615.0,0.004]
[1733829968619,0.712003,97616.0,97615.0,0.004]
[1733829969128,0.81318459,97616.0,97615.0,0.004]
[1733829969433,0.72196223,97616.0,97615.0,0.004]
[1733829970034,0.81318459,97616.0,97615.0,0.004]
[1733829970536,0.72196223,97616.0,97615.0,0.004]
[1733829972533,0.412003,97616.0,97615.0,0.055203]
[1733829977337,0.50322536,97616.0,97615.0,0.055203]
[1733829978537,0.412003,97616.0,97615.0,0.055203]
[1733829979648,0.3608,97616.0,97615.0,0.055203]
[1733829980443,0.45217999,97616.0,97615.0,0.055203]
[1733829981344,0.3608,97616.0,97615.0,0.055203]
[1733829982349,0.48297249,97616.0,97615.0,0.055203]
[1733829982744,0.3608,97616.0,97615.0,0.055203]
[1733829982942,0.09155208,97621.0,97620.0,0.051201]
[1733829983139,0.09155208,97624.0,97615.0,0.004]
[1733829983347,0.3608,97625.0,97624.0,0.051199]
[1733829983545,0.48286186,97625.0,97624.0,0.051199]
[1733829983741,0.48286186,97625.0,97624.0,0.051259]
[1733829984547,0.3618,97625.0,97624.0,0.051259]
[1733829986652,0.09267493,97625.0,97624.0,0.051259]
[1733829987044,0.001,97625.0,97624.0,0.051259]
[1733829990749,0.001,97625.0,97624.0,0.23454578]
[1733829990951,0.001,97625.0,97624.0,0.051259]
[1733829991745,0.45247493,97635.0,97624.0,0.18334678]
[1733829992050,0.09167493,97641.0,97640.0,0.05119]
[1733829992353,0.48354826,97645.0,97640.0,0.05119]
[1733829992354,0.36132001,97645.0,97642.0,0.051189]
[1733829992551,0.3608,97645.0,97640.0,6e-05]
[1733829992752,0.3608,97645.0,97644.0,0.051248]
[1733829993950,0.3618,97645.0,97644.0,0.051248]
[1733829994154,0.3658,97645.0,97644.0,0.051248]
[1733829994853,0.3658,97645.0,97644.0,0.052248]
[1733829996145,0.416988,97645.0,97644.0,0.00106]
[1733829996645,1.506988,97645.0,97644.0,0.00106]
[1733829996961,0.416988,97645.0,97644.0,0.00106]
[1733829999450,0.416988,97645.0,97644.0,0.052248]
[1733830000156,0.449288,97645.0,97644.0,0.00106]
[1733830002855,0.449288,97645.0,97631.0,0.051194]
[1733830002856,0.051194,97632.0,97631.0,0.051194]
[1733830003064,0.411994,97632.0,97631.0,0.051194]
[1733830004052,0.413994,97632.0,97631.0,0.051194]
[1733830004754,0.414994,97632.0,97631.0,0.051194]
[1733830005552,0.50647727,97632.0,97631.0,0.051194]
[1733830006155,0.414994,97632.0,97631.0,0.051194]
[1733830011264,0.5369717,97632.0,97631.0,0.051194]
[1733830012163,0.414994,97632.0,97631.0,0.051194]
[1733830013164,0.051198,97628.0,97627.0,0.051197]
[1733830013466,0.051318,97628.0,97627.0,0.051197]
[1733830014463,0.053318,97628.0,97627.0,0.051197]
[1733830014968,0.054318,97628.0,97627.0,0.051197]
[1733830015467,0.415118,97628.0,97627.0,0.051197]
[1733830020864,0.054318,97628.0,97627.0,0.051197]
[1733830021067,0.415118,97628.0,97627.0,0.051197]
[1733830024172,0.53731596,97628.0,97627.0,0.051197]
[1733830024867,0.415118,97628.0,97627.0,0.051197]
[1733830025268,0.415118,97628.0,97627.0,0.23497809]
[1733830025269,0.53731596,97628.0,97627.0,0.23497809]
[1733830025463,0.48611796,97628.0,97627.0,0.23497809]
[1733830026269,0.36392,97628.0,97627.0,0.051197]
[1733830026774,0.051198,97626.0,97624.0,0.24439233]
[1733830026971,0.051198,97626.0,97624.0,0.29559033]
[1733830027167,0.00012,97625.0,97624.0,0.29559033]
[1733830028972,0.00112,97625.0,97624.0,0.29559033]
[1733830029279,0.00112,97625.0,97624.0,0.051258]
[1733830030270,0.12344636,97625.0,97624.0,0.051258]
[1733830031174,0.00112,97625.0,97624.0,0.051258]
[1733830034269,0.12351101,97625.0,97624.0,0.051258]
[1733830039681,0.00112,97625.0,97624.0,0.051258]
[1733830039883,0.09291024,97625.0,97624.0,0.29810444]
[1733830040072,0.00112,97625.0,97624.0,0.33275999]
[1733830040272,0.09179024,97629.0,97628.0,0.051196]
[1733830040474,0.12238391,97645.0,97628.0,0.28150199]
[1733830040673,0.12238391,97646.0,97645.0,0.051188]
[1733830040888,0.48318391,97648.0,97647.0,0.051186]
[1733830041181,0.3608,97648.0,97647.0,0.05444582]
[1733830041384,0.3608,97648.0,97647.0,0.23848316]
[1733830041684,0.3608,97648.0,97647.0,0.051246]
[1733830042283,0.3608,97648.0,97647.0,0.23520816]
[1733830042678,0.3628,97648.0,97647.0,0.23620816]
[1733830043179,0.3628,97648.0,97647.0,0.052246]
[1733830043776,0.3668,97648.0,97647.0,0.052246]
[1733830044771,0.3668,97648.0,97647.0,0.06235882]
[1733830048382,0.006,97648.0,97647.0,0.06235882]
[1733830052185,0.006,97648.0,97647.0,0.10714823]
[1733830052389,0.006,97648.0,97647.0,0.06235882]
[1733830053880,0.002,97648.0,97647.0,0.06235882]
[1733830054190,0.003,97648.0,97647.0,0.06235882]
[1733830054891,0.002,97648.0,97647.0,0.06135882]
[1733830055184,0.002,97648.0,97647.0,0.30601831]
[1733830056180,9.03e-05,97654.0,97647.0,0.30601831]
[1733830056382,9.03e-05,97654.0,97653.0,0.051183]
[1733830056585,9.03e-05,97654.0,97653.0,0.23471856]
[1733830056987,9.03e-05,97654.0,97653.0,0.051243]
[1733830057290,0.0010903,97654.0,97653.0,0.051243]
[1733830057483,0.0010903,97654.0,97653.0,0.2346972]
[1733830057878,9.03e-05,97654.0,97653.0,0.051243]
[1733830058094,0.0030903,97654.0,97653.0,0.051243]
[1733830058786,0.0030903,97654.0,97653.0,0.412043]
[1733830059085,0.061,97672.0,97671.0,0.051174]
[1733830059485,0.061,97672.0,97671.0,0.051234]
[1733830059984,0.0304,97672.0,97671.0,0.051234]
[1733830060285,0.0324,97672.0,97671.0,0.051234]
[1733830060482,0.002,97672.0,97671.0,0.051234]
[1733830061191,0.002,97672.0,97671.0,0.0613994]
[1733830061381,0.002,97672.0,97671.0,0.1071778]
[1733830061578,0.002,97672.0,97671.0,0.0623994]
[1733830061785,0.0314,97688.0,97687.0,0.051165]
[1733830062191,0.0314,97688.0,97687.0,0.051225]
[1733830062387,0.3608,97690.0,97687.0,6e-05]
[1733830062590,0.18288358,97723.0,97690.0,0.051164]
[1733830062591,0.18342239,97716.0,97690.0,0.051164]
[1733830062793,0.0314,97707.0,97699.0,0.051159]
[1733830063094,0.0314,97707.0,97699.0,0.051219]
[1733830065387,0.0314,97707.0,97699.0,0.06142157]
[1733830065993,0.0314,97707.0,97699.0,0.06242157]
[1733830083506,0.0314,97707.0,97699.0,0.42322157]
[1733830084703,0.0314,97707.0,97699.0,0.60652665]
[1733830085295,0.0314,97707.0,97699.0,0.42322157]
[1733830090209,0.0314,97707.0,97699.0,0.98938325]
[1733830090703,0.0314,97707.0,97699.0,0.42322157]
[1733830091310,0.0314,97707.0,97699.0,0.68390844]
[1733830092002,0.0314,97707.0,97699.0,0.68381539]
[1733830097799,0.18342239,97716.0,97706.0,0.051156]
[1733830098010,0.15248725,97722.0,97717.0,0.05115]
[1733830098011,8.427e-05,97722.0,97717.0,0.05115]
[1733830098201,8.427e-05,97722.0,97721.0,0.051148]
[1733830098603,8.427e-05,97722.0,97721.0,0.67246517]
[1733830099201,0.0314,97732.0,97721.0,0.70699574]
[1733830099405,0.0314,97732.0,97731.0,0.051142]
[1733830099701,0.0314,97732.0,97731.0,0.051202]
[1733830102110,0.0314,97732.0,97731.0,0.23583165]
[1733830102310,0.0314,97732.0,97731.0,0.24606624]
[1733830102828,0.0314,97732.0,97731.0,0.06243659]
[1733830106007,0.15240298,97754.0,97750.0,0.051133]
[1733830106202,0.0329,97752.0,97750.0,0.051133]
[1733830106407,0.0329,97752.0,97750.0,0.051193]
[1733830107909,0.0329,97752.0,97750.0,0.052193]
[1733830109021,0.0329,97752.0,97750.0,0.051193]
[1733830109218,0.0329,97752.0,97750.0,0.06127283]
[1733830117021,0.411932,97751.0,97750.0,0.01013983]
[1733830117226,0.051136,97744.0,97739.0,0.051138]
[1733830117517,0.00012,97740.0,97734.0,0.06596258]
[1733830117711,0.00012,97740.0,97738.0,0.051139]
[1733830117912,0.411937,97742.0,97739.0,0.051138]
[1733830118118,0.411937,97742.0,97741.0,0.051137]
[1733830118327,0.411937,97742.0,97741.0,0.051197]
[1733830119324,0.411937,97742.0,97741.0,0.051137]
[1733830119513,0.411937,97742.0,97739.0,0.001]
[1733830119718,0.411937,97742.0,97741.0,0.051137]
[1733830120219,0.411937,97742.0,97741.0,0.052137]
[1733830121029,0.411937,97742.0,97741.0,0.001]
[1733830121325,0.051137,97741.0,97740.0,0.051138]
[1733830121718,0.051257,97741.0,97740.0,0.051138]
[1733830127723,0.412057,97741.0,97740.0,0.051138]
[1733830128118,0.051142,97737.0,97736.0,0.05114]
[1733830128431,0.051262,97737.0,97736.0,0.05114]
[1733830129227,0.051142,97732.0,97731.0,0.00011144]
[1733830129430,0.411942,97732.0,97731.0,0.00011144]
[1733830129633,0.412062,97732.0,97731.0,0.00011144]
[1733830129822,0.412062,97732.0,97712.0,0.18352752]
[1733830129823,0.72243058,97732.0,97712.0,0.18352752]
[1733830130030,0.72243058,97732.0,97715.0,0.051151]
[1733830130031,0.411947,97722.0,97715.0,0.051151]
[1733830130220,0.412067,97722.0,97715.0,0.051151]
[1733830130826,0.412067,97722.0,97721.0,0.0001827]
[1733830131321,0.412067,97722.0,97721.0,0.0031827]
[1733830132326,0.412067,97722.0,97721.0,0.0543307]
[1733830132723,0.412067,97722.0,97721.0,0.0593307]
[1733830134826,0.412067,97722.0,97721.0,0.0081827]
[1733830142338,0.42216865,97722.0,97721.0,0.0081827]
[1733830143943,0.42216865,97722.0,97721.0,1e-08]
[1733830144334,0.72216865,97722.0,97721.0,1e-08]
[1733830145245,0.87457163,97722.0,97721.0,1e-08]
[1733830145445,0.72216865,97722.0,97721.0,1e-08]
[1733830145747,0.77190983,97722.0,97721.0,1e-08]
[1733830145935,0.47190983,97722.0,97721.0,1e-08]
[1733830146449,0.051156,97706.0,97705.0,0.051156]
[1733830146749,0.412076,97706.0,97705.0,0.051156]
[1733830147947,0.414076,97706.0,97705.0,0.051156]
[1733830148942,0.053276,97706.0,97705.0,0.051156]
[1733830149141,0.414076,97706.0,97705.0,0.051156]
[1733830152960,0.36292,97706.0,97705.0,0.051156]
[1733830153252,0.00212,97706.0,97705.0,0.051156]
[1733830154546,0.00212,97706.0,97705.0,0.23468352]
[1733830155360,0.00212,97706.0,97705.0,0.051156]
[1733830156041,0.00212,97706.0,97705.0,0.23479091]
[1733830156244,0.00212,97706.0,97705.0,0.051156]
[1733830156441,0.00212,97706.0,97701.0,0.18366608]
[1733830156648,0.411958,97702.0,97701.0,0.23482408]
[1733830156854,0.412078,97702.0,97701.0,0.23482408]
[1733830157452,0.412078,97702.0,97701.0,0.051158]
[1733830158358,0.412078,97702.0,97701.0,0.23482408]
[1733830158657,0.36092,97702.0,97701.0,0.23482408]
[1733830159053,0.36092,97702.0,97701.0,0.051158]
[1733830159550,0.36092,97702.0,97701.0,0.23499439]
[1733830159753,0.412078,97702.0,97701.0,0.23499439]
[1733830159947,0.412078,97702.0,97701.0,0.051158]
[1733830161955,0.5039217,97702.0,97701.0,0.051158]
[1733830163458,0.412078,97702.0,97701.0,0.051158]
[1733830167362,0.051278,97702.0,97701.0,0.051158]
[1733830167570,0.051278,97702.0,97701.0,0.29622483]
[1733830168360,0.051278,97702.0,97701.0,0.24506683]
[1733830168564,0.051159,97700.0,97699.0,0.29622583]
[1733830168869,0.14306833,97700.0,97699.0,0.29622583]
[1733830169062,0.051159,97700.0,97699.0,0.29622583]
[1733830169258,0.051159,97700.0,97699.0,0.051159]
[1733830169462,0.051279,97700.0,97699.0,0.051159]
[1733830169760,0.051279,97700.0,97699.0,0.052159]
[1733830169966,0.051279,97700.0,97699.0,0.053159]
[1733830172467,0.051279,97700.0,97699.0,0.29845733]
[1733830173363,0.00012,97700.0,97699.0,0.29845733]
[1733830173554,0.12249436,97700.0,97699.0,0.053159]
[1733830173761,0.00012,97700.0,97699.0,0.053159]
[1733830177882,0.12249436,97700.0,97699.0,0.053159]
[1733830179559,0.00012,97700.0,97699.0,0.053159]
[1733830180572,0.12249436,97700.0,97699.0,0.053159]
[1733830180770,0.00012,97700.0,97699.0,0.053159]
[1733830181474,0.12249436,97700.0,97699.0,0.053159]
[1733830182663,0.00012,97700.0,97699.0,0.053159]
[1733830185674,0.12249436,97700.0,97699.0,0.053159]
[1733830186172,0.00012,97700.0,97699.0,0.053159]
[1733830186372,0.051279,97700.0,97699.0,0.053159]
[1733830186674,0.17365336,97700.0,97699.0,0.053159]
[1733830186880,0.051279,97700.0,97699.0,0.053159]
[1733830190871,0.00012,97700.0,97699.0,0.053159]
[1733830195284,0.00012,97700.0,97699.0,0.31289054]
[1733830196277,0.09210771,97700.0,97699.0,0.31289054]
[1733830196479,0.00012,97700.0,97699.0,0.31289054]
[1733830197776,0.00012,97700.0,97699.0,0.71423136]
[1733830197976,0.00012,97700.0,97699.0,0.34738174]
[1733830198182,0.00012,97700.0,97699.0,0.65704441]
[1733830198381,0.00012,97700.0,97699.0,0.77129073]
[1733830198584,0.00012,97700.0,97699.0,0.46162806]
[1733830198881,0.00012,97700.0,97699.0,0.34738174]
[1733830199281,0.09198619,97711.0,97699.0,0.34738174]
[1733830199476,0.09198619,97712.0,97708.0,0.30669316]
[1733830199786,0.09198619,97712.0,97711.0,0.051153]
[1733830200081,0.12264419,97717.0,97715.0,0.051151]
[1733830200282,0.03998719,97723.0,97716.0,0.70612938]
[1733830200486,0.1527137,97736.0,97735.0,0.05114]
[1733830200676,0.3608,97737.0,97735.0,0.18394213]
[1733830200876,0.3608,97737.0,97736.0,0.05114]
[1733830201085,0.3608,97737.0,97736.0,0.0512]
[1733830202972,0.3628,97737.0,97736.0,0.0512]
[1733830205685,0.3628,97737.0,97736.0,0.06152215]
[1733830211595,0.413939,97737.0,97736.0,6e-05]
[1733830214280,0.413939,97737.0,97722.0,6e-05]
[1733830214281,0.051147,97723.0,97722.0,6e-05]
[1733830214485,0.411947,97723.0,97722.0,6e-05]
[1733830214686,0.412067,97723.0,97722.0,6e-05]
[1733830215296,0.412067,97723.0,97710.0,0.051153]
[1733830215593,0.412074,97711.0,97710.0,0.051153]
[1733830216795,0.414074,97711.0,97710.0,0.051153]
[1733830218784,0.36192,97711.0,97710.0,0.051153]
[1733830219991,0.36192,97711.0,97710.0,0.06154985]
[1733830220388,0.36092,97711.0,97710.0,0.06554985]
[1733830220694,0.36092,97711.0,97710.0,0.055153]
[1733830221502,0.412073,97711.0,97710.0,0.057153]
[1733830221884,0.412073,97711.0,97710.0,0.053153]
[1733830222085,0.412073,97711.0,97710.0,0.055153]
[1733830222287,0.412073,97711.0,97710.0,0.057153]
[1733830222481,0.412073,97711.0,97710.0,0.053153]
[1733830222697,0.412073,97711.0,97710.0,0.055153]
[1733830222901,0.412073,97711.0,97710.0,0.004]
[1733830223692,0.412073,97711.0,97710.0,0.002]
[1733830223896,0.051154,97708.0,97707.0,0.051154]
[1733830224795,0.051274,97708.0,97707.0,0.051154]
[1733830225996,0.051274,97708.0,97707.0,0.052154]
[1733830227889,0.051274,97708.0,97707.0,0.053154]
[1733830235291,0.051274,97708.0,97707.0,0.002]
[1733830239114,0.053274,97708.0,97707.0,0.001]
[1733830240103,0.053274,97708.0,97702.0,0.051158]
[1733830240403,0.051157,97703.0,97702.0,0.051158]
[1733830241103,0.051277,97703.0,97702.0,0.051158]
[1733830241307,0.051158,97701.0,97700.0,0.18345466]
[1733830241494,0.411958,97701.0,97700.0,0.18345466]
[1733830241697,0.412078,97701.0,97700.0,0.18345466]
[1733830242103,0.05116,97698.0,97697.0,0.05116]
[1733830242496,0.05128,97698.0,97697.0,0.05116]
[1733830243205,0.05128,97698.0,97697.0,0.29641617]
[1733830243403,0.00012,97698.0,97696.0,0.01021676]
[1733830243702,0.05116,97698.0,97697.0,0.18391707]
[1733830243893,0.41247801,97701.0,97696.0,0.18391707]
[1733830244097,0.411958,97701.0,97694.0,0.23507807]
[1733830244298,0.411958,97701.0,97700.0,6e-05]
[1733830247004,0.42201182,97701.0,97700.0,6e-05]
[1733830247400,0.57472552,97701.0,97700.0,6e-05]
[1733830247807,0.47176051,97701.0,97700.0,6e-05]
[1733830248001,0.47176051,97701.0,97680.0,0.11673619]
[1733830248002,0.47176051,97701.0,97686.0,0.18391707]
[1733830248203,0.051166,97686.0,97685.0,0.18391707]
[1733830248509,0.411966,97686.0,97685.0,0.18391707]
[1733830248902,0.411966,97686.0,97680.0,0.11673619]
[1733830248903,0.051169,97681.0,97680.0,0.11673619]
[1733830249103,0.051169,97681.0,97680.0,5.514e-05]
[1733830249712,0.39292001,97686.0,97680.0,5.514e-05]
[1733830250005,0.00012,97687.0,97680.0,0.05622414]
[1733830250207,0.00012,97687.0,97686.0,0.411966]
[1733830250410,0.00012,97687.0,97686.0,0.45674825]
[1733830252406,0.00012,97687.0,97686.0,0.48814825]